fUST/lending_fUST_20250823
["ID","MTS","AMOUNT","RATE_DAILY","PERIOD"]
[381022473,1755952239248,-5637.15019823,0.0002768,2]
[381022474,1755952239257,-800.0,0.00027686,2]
[381022475,1755952239268,-151.7913396,0.0002769,2]
[381022476,1755952239277,-500.0,0.000277,2]
[381022477,1755952239286,-579.3242411,0.00027701,2]
[381022478,1755952239295,-45097.2015858,0.00027702,2]
[381022479,1755952239305,-151.0,0.00027702,7]
[381022480,1755952239314,-151.0,0.00027702,7]
[381022481,1755952239323,-151.0,0.00027702,7]
[381022482,1755952239333,-151.0,0.00027702,7]
[381022483,1755952239342,-151.0,0.00027702,7]
[381022484,1755952239351,-151.0,0.00027702,7]
[381022485,1755952239360,-151.0,0.00027702,7]
[381022486,1755952239369,-151.0,0.00027702,7]
[381022487,1755952239380,-168.617227,0.00027702,7]
[381022488,1755952239389,-151.0,0.00027702,7]
[381022489,1755952239398,-151.0,0.00027702,7]
[381022490,1755952239415,-503.164019,0.00027702,7]
[381022491,1755952239424,-503.164019,0.00027702,7]
[381022492,1755952239434,-503.164019,0.00027702,7]
[381022493,1755952239443,-503.164019,0.00027702,7]
[381022494,1755952239452,-152.669651,0.00027702,7]
[381022495,1755952239462,-151.0,0.00027702,7]
[381022496,1755952239471,-151.0,0.00027702,7]
[381022497,1755952239481,-151.0,0.00027702,7]
[381022499,1755952239490,-151.0,0.00027702,7]
[381022500,1755952239500,-151.0,0.00027702,7]
[381022501,1755952239510,-822.909604,0.00027702,7]
[381022502,1755952239519,-151.0,0.00027702,7]
[381022503,1755952239528,-214.53217,0.00027702,7]
[381022504,1755952239538,-822.909604,0.00027702,7]
[381022506,1755952239548,-151.0,0.00027702,7]
[381022508,1755952239558,-151.0,0.00027702,7]
[381022509,1755952239568,-151.0,0.00027702,7]
[381022510,1755952239577,-151.0,0.00027702,7]
[381022511,1755952239587,-822.909604,0.00027702,7]
[381022512,1755952239596,-208.599095,0.00027702,7]
[381022513,1755952239606,-151.0,0.00027702,7]
[381022514,1755952239616,-151.0,0.00027702,7]
[381022515,1755952239625,-822.909604,0.00027702,7]
[381022516,1755952239634,-208.599095,0.00027702,7]
[381022517,1755952239643,-151.0,0.00027702,7]
[381022518,1755952239654,-151.0,0.00027702,7]
[381022519,1755952239664,-208.599095,0.00027702,7]
[381022520,1755952239673,-194.876025,0.00027702,7]
[381022521,1755952239683,-152.649123,0.00027702,7]
[381022522,1755952239692,-208.599095,0.00027702,7]
[381022523,1755952239701,-151.0,0.00027702,7]
[381022525,1755952239710,-151.0,0.00027702,7]
[381022527,1755952239720,-151.0,0.00027702,7]
[381022528,1755952239730,-151.0,0.00027702,7]
[381022529,1755952239740,-844.806752,0.00027702,7]
[381022530,1755952239749,-151.0,0.00027702,7]
[381022531,1755952239759,-151.0,0.00027702,7]
[381022532,1755952239769,-844.806752,0.00027702,7]
[381022533,1755952239778,-151.0,0.00027702,7]
[381022534,1755952239787,-844.806752,0.00027702,7]
[381022535,1755952239797,-151.0,0.00027702,7]
[381022536,1755952239806,-844.806752,0.00027702,7]
[381022537,1755952239816,-151.0,0.00027702,7]
[381022538,1755952239825,-151.0,0.00027702,7]
[381022539,1755952239835,-182.950605,0.00027702,7]
[381022540,1755952239844,-151.0,0.00027702,7]
[381022541,1755952239853,-182.950605,0.00027702,7]
[381022542,1755952239863,-153.469419,0.00027702,7]
[381022543,1755952239872,-182.950605,0.00027702,7]
[381022545,1755952239881,-182.950605,0.00027702,7]
[381022547,1755952239891,-750.476033,0.00027702,7]
[381022548,1755952239900,-750.476033,0.00027702,7]
[381022549,1755952239914,-750.476033,0.00027702,7]
[381022550,1755952239923,-205.883551,0.00027702,7]
[381022551,1755952239933,-750.476033,0.00027702,7]
[381022552,1755952239942,-205.883551,0.00027702,7]
[381022553,1755952239952,-151.0,0.00027702,7]
[381022554,1755952239961,-712.455779,0.00027702,7]
[381022555,1755952239971,-712.455779,0.00027702,7]
[381022556,1755952239981,-151.0,0.00027702,7]
[381022557,1755952239990,-712.455779,0.00027702,7]
[381022558,1755952240000,-161.367355,0.00027702,7]
[381022559,1755952240009,-712.455779,0.00027702,7]
[381022560,1755952240019,-318.46626,0.00027702,7]
[381022561,1755952240028,-318.46626,0.00027702,7]
[381022562,1755952240038,-318.46626,0.00027702,7]
[381022563,1755952240047,-154.45365,0.00027702,7]
[381022564,1755952240057,-318.46626,0.00027702,7]
[381022565,1755952240067,-151.0,0.00027702,7]
[381022566,1755952240077,-151.635013,0.00027702,7]
[381022567,1755952240087,-151.0,0.00027702,7]
[381022568,1755952240100,-151.0,0.00027702,7]
[381022569,1755952240109,-247.590088,0.00027702,7]
[381022570,1755952240118,-151.0,0.00027702,7]
[381022571,1755952240128,-207.781341,0.00027702,7]
[381022572,1755952240138,-151.0,0.00027702,7]
[381022573,1755952240148,-151.0,0.00027702,7]
[381022574,1755952240258,-151.0,0.00027702,7]
[381022575,1755952240268,-151.0,0.00027702,7]
[381022576,1755952240280,-151.0,0.00027702,7]
[381022577,1755952240300,-151.0,0.00027702,7]
[381022578,1755952240309,-151.0,0.00027702,7]
[381022579,1755952240318,-151.0,0.00027702,7]
[381022580,1755952240327,-151.0,0.00027702,7]
[381022581,1755952240337,-151.0,0.00027702,7]
[381022582,1755952240346,-151.0,0.00027702,7]
[381022583,1755952240356,-151.0,0.00027702,7]
[381022584,1755952240365,-151.0,0.00027702,7]
[381022585,1755952240375,-151.0,0.00027702,7]
[381022586,1755952240384,-592.577727,0.00027702,7]
[381022587,1755952240393,-592.577727,0.00027702,7]
[381022588,1755952240404,-592.577727,0.00027702,7]
[381022589,1755952240414,-604.090145,0.00027702,7]
[381022590,1755952240423,-315.469125,0.00027702,7]
[381022591,1755952240432,-592.577727,0.00027702,7]
[381022592,1755952240441,-604.090145,0.00027702,7]
[381022593,1755952240451,-315.469125,0.00027702,7]
[381022594,1755952240460,-160.0,0.00027702,7]
[381022595,1755952240470,-315.469125,0.00027702,7]
[381022596,1755952240479,-604.090145,0.00027702,7]
[381022597,1755952240489,-315.469125,0.00027702,7]
[381022598,1755952240498,-604.090145,0.00027702,7]
[381022599,1755952240508,-151.0,0.00027702,7]
[381022600,1755952240517,-151.0,0.00027702,7]
[381022601,1755952240527,-151.0,0.00027702,7]
[381022602,1755952240536,-151.0,0.00027702,7]
[381022603,1755952240546,-151.0,0.00027702,7]
[381022604,1755952240555,-173.294936,0.00027702,7]
[381022605,1755952240564,-272.829676,0.00027702,7]
[381022606,1755952240573,-272.829676,0.00027702,7]
[381022607,1755952240582,-272.829676,0.00027702,7]
[381022608,1755952240593,-272.829676,0.00027702,7]
[381022609,1755952240602,-151.0,0.00027702,7]
[381022610,1755952240611,-151.0,0.00027702,7]
[381022611,1755952240621,-215.94678008,0.00027702,7]
[381022612,1755952240630,-151.894825,0.00027702,7]
[381022613,1755952240639,-151.0,0.00027702,7]
[381022614,1755952240649,-151.0,0.00027702,7]
[381022615,1755952240660,-151.0,0.00027702,7]
[381022616,1755952240669,-5637.15019823,0.00027702,2]
[381022617,1755952240679,-370000.0,0.00027712,2]
[381022618,1755952240689,-151.0,0.00027712,7]
[381022619,1755952240698,-151.0,0.00027712,7]
[381022620,1755952240708,-151.0,0.00027712,7]
[381022621,1755952240718,-151.0,0.00027712,7]
[381022622,1755952240727,-151.0,0.00027712,7]
[381022623,1755952240737,-151.0,0.00027712,7]
[381022624,1755952240746,-151.0,0.00027712,7]
[381022625,1755952240755,-153.412941,0.00027712,7]
[381022626,1755952240765,-151.0,0.00027712,7]
[381022627,1755952240774,-151.0,0.00027712,7]
[381022628,1755952240783,-151.0,0.00027712,7]
[381022629,1755952240792,-151.0,0.00027712,7]
[381022630,1755952240802,-151.0,0.00027712,7]
[381022631,1755952240811,-283.24388,0.00027712,7]
[381022632,1755952240822,-151.0,0.00027712,7]
[381022633,1755952240831,-151.0,0.00027712,7]
[381022634,1755952240842,-151.0,0.00027712,7]
[381022635,1755952240852,-151.0,0.00027712,7]
[381022636,1755952240861,-151.0,0.00027712,7]
[381022637,1755952240871,-151.0,0.00027712,7]
[381022638,1755952240880,-151.0,0.00027712,7]
[381022639,1755952240890,-232.37252479,0.00027712,7]
[381022640,1755952240900,-168.617227,0.00027712,7]
[381022641,1755952240911,-151.0,0.00027712,7]
[381022642,1755952240920,-151.0,0.00027712,7]
[381022643,1755952240930,-529.05847148,0.00027712,7]
[381022644,1755952240939,-217.0334113,0.00027712,7]
[381022645,1755952240949,-503.164019,0.00027712,7]
[381022646,1755952240958,-503.164019,0.00027712,7]
[381022647,1755952240967,-503.164019,0.00027712,7]
[381022648,1755952240976,-503.164019,0.00027712,7]
[381022649,1755952240986,-151.0,0.00027712,7]
[381022650,1755952240996,-151.0,0.00027712,7]
[381022651,1755952241005,-151.0,0.00027712,7]
[381022652,1755952241014,-151.0,0.00027712,7]
[381022653,1755952241023,-822.909604,0.00027712,7]
[381022654,1755952241032,-151.0,0.00027712,7]
[381022655,1755952241041,-822.909604,0.00027712,7]
[381022656,1755952241050,-151.0,0.00027712,7]
[381022657,1755952241059,-151.0,0.00027712,7]
[381022658,1755952241069,-151.0,0.00027712,7]
[381022659,1755952241078,-151.0,0.00027712,7]
[381022660,1755952241088,-822.909604,0.00027712,7]
[381022661,1755952241101,-208.599095,0.00027712,7]
[381022662,1755952241110,-151.0,0.00027712,7]
[381022663,1755952241119,-151.0,0.00027712,7]
[381022664,1755952241129,-822.909604,0.00027712,7]
[381022665,1755952241140,-208.599095,0.00027712,7]
[381022666,1755952241158,-151.0,0.00027712,7]
[381022667,1755952241172,-151.0,0.00027712,7]
[381022668,1755952241183,-208.599095,0.00027712,7]
[381022669,1755952241192,-208.599095,0.00027712,7]
[381022670,1755952241202,-160.0,0.00027712,7]
[381022671,1755952241211,-844.50316758,0.00027712,7]
[381022672,1755952241220,-151.0,0.00027712,7]
[381022673,1755952241230,-151.0,0.00027712,7]
[381022674,1755952241239,-151.0,0.00027712,7]
[381022675,1755952241249,-844.806752,0.00027712,7]
[381022676,1755952241258,-151.0,0.00027712,7]
[381022677,1755952241267,-271.584211,0.00027712,7]
[381022678,1755952241278,-151.0,0.00027712,7]
[381022679,1755952241288,-844.806752,0.00027712,7]
[381022680,1755952241297,-151.0,0.00027712,7]
[381022681,1755952241306,-844.806752,0.00027712,7]
[381022682,1755952241315,-151.0,0.00027712,7]
[381022683,1755952241325,-844.806752,0.00027712,7]
[381022684,1755952241338,-183.00433,0.00027712,7]
[381022685,1755952241348,-151.0,0.00027712,7]
[381022686,1755952241357,-182.950605,0.00027712,7]
[381022687,1755952241367,-151.0,0.00027712,7]
[381022688,1755952241376,-182.950605,0.00027712,7]
[381022689,1755952241386,-182.950605,0.00027712,7]
[381022690,1755952241397,-182.950605,0.00027712,7]
[381022691,1755952241419,-750.476033,0.00027712,7]
[381022692,1755952241439,-750.476033,0.00027712,7]
[381022693,1755952241449,-750.476033,0.00027712,7]
[381022694,1755952241459,-205.883551,0.00027712,7]
[381022695,1755952241468,-205.883551,0.00027712,7]
[381022696,1755952241478,-750.476033,0.00027712,7]
[381022697,1755952241488,-151.0,0.00027712,7]
[381022698,1755952241497,-712.455779,0.00027712,7]
[381022699,1755952241506,-712.455779,0.00027712,7]
[381022700,1755952241516,-151.0,0.00027712,7]
[381022701,1755952241526,-712.455779,0.00027712,7]
[381022702,1755952241537,-712.455779,0.00027712,7]
[381022703,1755952241547,-318.46626,0.00027712,7]
[381022704,1755952241556,-318.46626,0.00027712,7]
[381022705,1755952241565,-318.46626,0.00027712,7]
[381022706,1755952241576,-318.46626,0.00027712,7]
[381022707,1755952241586,-151.0,0.00027712,7]
[381022708,1755952241595,-151.0,0.00027712,7]
[381022709,1755952241604,-151.0,0.00027712,7]
[381022710,1755952241614,-151.0,0.00027712,7]
[381022711,1755952241623,-151.0,0.00027712,7]
[381022712,1755952241632,-151.0,0.00027712,7]
[381022713,1755952241642,-151.0,0.00027712,7]
[381022714,1755952241651,-151.0,0.00027712,7]
[381022715,1755952241661,-151.0,0.00027712,7]
[381022716,1755952241670,-281.867994,0.00027712,7]
[381022717,1755952241679,-151.0,0.00027712,7]
[381022718,1755952241689,-151.0,0.00027712,7]
[381022719,1755952241698,-151.0,0.00027712,7]
[381022720,1755952241708,-151.0,0.00027712,7]
[381022721,1755952241717,-151.0,0.00027712,7]
[381022722,1755952241727,-151.0,0.00027712,7]
[381022723,1755952241736,-151.0,0.00027712,7]
[381022724,1755952241745,-257.043807,0.00027712,7]
[381022725,1755952241755,-592.577727,0.00027712,7]
[381022726,1755952241764,-592.577727,0.00027712,7]
[381022727,1755952241773,-592.577727,0.00027712,7]
[381022728,1755952241783,-604.090145,0.00027712,7]
[381022729,1755952241792,-315.469125,0.00027712,7]
[381022730,1755952241801,-592.577727,0.00027712,7]
[381022731,1755952241811,-604.090145,0.00027712,7]
[381022732,1755952241820,-315.469125,0.00027712,7]
[381022733,1755952241829,-315.469125,0.00027712,7]
[381022734,1755952241840,-604.090145,0.00027712,7]
[381022735,1755952241850,-604.090145,0.00027712,7]
[381022736,1755952241860,-315.469125,0.00027712,7]
[381022737,1755952241870,-160.0,0.00027712,7]
[381022738,1755952241880,-151.0,0.00027712,7]
[381022739,1755952241890,-151.0,0.00027712,7]
[381022740,1755952241900,-151.0,0.00027712,7]
[381022741,1755952241912,-151.0,0.00027712,7]
[381022742,1755952241921,-272.829676,0.00027712,7]
[381022743,1755952241930,-272.829676,0.00027712,7]
[381022744,1755952241940,-272.829676,0.00027712,7]
[381022745,1755952241952,-272.829676,0.00027712,7]
[381022746,1755952241962,-151.0,0.00027712,7]
[381022747,1755952241971,-152.239268,0.00027712,7]
[381022748,1755952241981,-151.0,0.00027712,7]
[381022749,1755952241990,-449.0,0.00027729,7]
[381022750,1755952241999,-160.0,0.00027757,2]
[381022751,1755952242008,-151.0,0.00027758,2]
[381022752,1755952242018,-198.0,0.00027758,2]
[381022753,1755952242029,-151.0,0.00027758,2]
[381022754,1755952242130,-283.46177542,0.00027758,2]
[381022755,1755952242141,-151.0,0.00027758,2]
[381022756,1755952242150,-500.0,0.00027773,5]
[381022757,1755952242161,-508.2550275,0.00027773,5]
[381022758,1755952242170,-500.0,0.00027773,5]
[381022759,1755952242180,-500.0,0.00027773,5]
[381022760,1755952242191,-408.58647314,0.00027773,2]
[381022761,1755952242200,-501.07379539,0.00027773,5]
[381022762,1755952242209,-185.63318038,0.00027773,2]
[381022763,1755952242219,-501.79688721,0.00027773,5]
[381022764,1755952242228,-500.0,0.00027773,5]
[381022765,1755952242237,-500.0,0.00027773,5]
[381022766,1755952242247,-500.0,0.00027773,5]
[381022767,1755952242256,-500.0,0.00027773,5]
[381022768,1755952242265,-500.0,0.00027773,5]
[381022769,1755952242276,-501.17541978,0.00027773,5]
[381022770,1755952242285,-500.0,0.00027773,5]
[381022771,1755952242294,-500.0,0.00027773,5]
[381022772,1755952242305,-500.0,0.00027773,5]
[381022773,1755952242314,-500.0,0.00027773,5]
[381022774,1755952242324,-154.73505411,0.00027773,5]
[381022775,1755952242333,-573.51611395,0.00027773,5]
[381022776,1755952242343,-501.51976869,0.00027773,5]
[381022777,1755952242352,-342.30546957,0.00027773,5]
[381022778,1755952242361,-216.83516896,0.00027773,5]
[381022779,1755952242371,-258.98523533,0.00027773,5]
[381022780,1755952242379,-500.0,0.00027773,5]
[381022781,1755952242388,-500.0,0.00027773,5]
[381022782,1755952242398,-500.0,0.00027773,5]
[381022783,1755952242408,-500.58590469,0.00027773,5]
[381022784,1755952242417,-501.40769734,0.00027773,5]
[381022785,1755952242430,-500.0,0.00027773,5]
[381022786,1755952242439,-500.0,0.00027773,5]
[381022787,1755952242448,-500.0,0.00027773,5]
[381022788,1755952242458,-501.17743822,0.00027773,5]
[381022789,1755952242467,-502.00930748,0.00027773,5]
[381022790,1755952242477,-500.25813984,0.00027773,5]
[381022791,1755952242486,-1000.0,0.000278,2]
[381022792,1755952242495,-995.2649823,0.00027807,2]
[381022793,1755952242504,-160.8919479,0.00027807,2]
[381022794,1755952242513,-331.7549942,0.00027807,2]
[381022795,1755952242523,-151.0,0.00027812,2]
[381022796,1755952242532,-610.28091887,0.00027812,2]
[381022797,1755952242542,-168.0,0.00027858,2]
[381022798,1755952242553,-217.15233878,0.00027891,2]
[381022799,1755952242563,-1883.33,0.000279,7]
[381022800,1755952242572,-158.288624,0.000279,2]
[381022801,1755952242581,-1000.0,0.00027917,2]
[381022802,1755952242591,-1000.0,0.00027917,2]
[381022805,1755952242600,-613.25684597,0.00027917,2]
[381022810,1755952242617,-386.74315403,0.00027917,2]
[381022812,1755952242627,-1000.0,0.00027917,2]
[381022814,1755952242636,-475.91827112,0.00027917,2]
[381022815,1755952242646,-193.0,0.00027929,2]
[381022816,1755952242656,-360.0,0.00027984,2]
[381022817,1755952242665,-232.37252479,0.00028,3]
[381022818,1755952242675,-217.0334113,0.00028,3]
[381022819,1755952242684,-198.0,0.00028032,2]
[381022820,1755952242693,-237.56492559,0.00028032,2]
[381022821,1755952242702,-199.0,0.00028064,30]
[381022822,1755952242712,-668.0,0.00028124,2]
[381022823,1755952242721,-151.0,0.00028133,7]
[381022824,1755952242730,-5637.15019823,0.00028133,2]
[381022825,1755952242739,-420.0,0.00028137,2]
[381022826,1755952242749,-500.0,0.00028139,2]
[381022827,1755952242758,-151.0,0.00028143,7]
[381022828,1755952242767,-151.0,0.00028143,7]
[381022829,1755952242777,-844.806752,0.00028143,7]
[381022830,1755952242786,-151.0,0.00028143,7]
[381022831,1755952242796,-844.806752,0.00028143,7]
[381022832,1755952242805,-151.0,0.00028143,7]
[381022833,1755952242814,-844.806752,0.00028143,7]
[381022834,1755952242823,-151.0,0.00028143,7]
[381022835,1755952242831,-844.806752,0.00028143,7]
[381022836,1755952242841,-151.0,0.00028143,7]
[381022837,1755952242850,-182.950605,0.00028143,7]
[381022838,1755952242859,-151.0,0.00028143,7]
[381022839,1755952242868,-182.950605,0.00028143,7]
[381022840,1755952242878,-182.950605,0.00028143,7]
[381022841,1755952242887,-182.950605,0.00028143,7]
[381022842,1755952242896,-750.476033,0.00028143,7]
[381022843,1755952242906,-750.476033,0.00028143,7]
[381022844,1755952242915,-750.476033,0.00028143,7]
[381022845,1755952242925,-205.883551,0.00028143,7]
[381022846,1755952242934,-750.476033,0.00028143,7]
[381022847,1755952242943,-205.883551,0.00028143,7]
[381022848,1755952242952,-712.455779,0.00028143,7]
[381022849,1755952242962,-712.455779,0.00028143,7]
[381022850,1755952242971,-151.0,0.00028143,7]
[381022851,1755952242981,-712.455779,0.00028143,7]
[381022852,1755952242990,-712.455779,0.00028143,7]
[381022853,1755952242999,-318.46626,0.00028143,7]
[381022854,1755952243008,-318.46626,0.00028143,7]
[381022855,1755952243018,-318.46626,0.00028143,7]
[381022856,1755952243027,-318.46626,0.00028143,7]
[381022857,1755952243036,-151.0,0.00028143,7]
[381022858,1755952243046,-151.0,0.00028143,7]
[381022859,1755952243055,-151.0,0.00028143,7]
[381022860,1755952243064,-151.0,0.00028143,7]
[381022861,1755952243074,-151.0,0.00028143,7]
[381022862,1755952243084,-151.0,0.00028143,7]
[381022863,1755952243097,-151.0,0.00028143,7]
[381022864,1755952243106,-151.0,0.00028143,7]
[381022865,1755952243116,-151.0,0.00028143,7]
[381022867,1755952243126,-151.0,0.00028143,7]
[381022868,1755952243136,-151.0,0.00028143,7]
[381022869,1755952243145,-151.0,0.00028143,7]
[381022870,1755952243155,-151.0,0.00028143,7]
[381022871,1755952243165,-160.568594,0.00028143,7]
[381022872,1755952243175,-212.332818,0.00028143,7]
[381022873,1755952243185,-151.0,0.00028143,7]
[381022874,1755952243194,-592.577727,0.00028143,7]
[381022876,1755952243203,-592.577727,0.00028143,7]
[381022877,1755952243213,-592.577727,0.00028143,7]
[381022878,1755952243222,-604.090145,0.00028143,7]
[381022879,1755952243231,-315.469125,0.00028143,7]
[381022880,1755952243241,-592.577727,0.00028143,7]
[381022881,1755952243253,-604.090145,0.00028143,7]
[381022882,1755952243262,-315.469125,0.00028143,7]
[381022884,1755952243271,-315.469125,0.00028143,7]
[381022885,1755952243281,-604.090145,0.00028143,7]
[381022886,1755952243290,-604.090145,0.00028143,7]
[381022887,1755952243299,-315.469125,0.00028143,7]
[381022888,1755952243308,-151.0,0.00028143,7]
[381022889,1755952243317,-151.664793,0.00028143,7]
[381022890,1755952243326,-151.0,0.00028143,7]
[381022891,1755952243335,-151.0,0.00028143,7]
[381022892,1755952243344,-272.829676,0.00028143,7]
[381022893,1755952243354,-272.829676,0.00028143,7]
[381022894,1755952243364,-272.829676,0.00028143,7]
[381022895,1755952243382,-272.829676,0.00028143,7]
[381022896,1755952243397,-151.0,0.00028143,7]
[381022897,1755952243406,-153.0,0.00028143,7]
[381022898,1755952243415,-155.0,0.00028143,7]
[381022899,1755952243425,-326.0,0.00028143,7]
[381022900,1755952243434,-326.0,0.00028143,7]
[381022901,1755952243444,-326.0,0.00028143,7]
[381022902,1755952243454,-161.0,0.00028143,7]
[381022903,1755952243464,-161.0,0.00028143,7]
[381022904,1755952243473,-161.0,0.00028143,7]
[381022905,1755952243482,-168.62637664,0.00028143,7]
[381022906,1755952243492,-203.40023361,0.00028143,7]
[381022907,1755952243501,-1762.0,0.00028143,7]
[381022908,1755952243510,-1762.0,0.00028143,7]
[381022909,1755952243520,-1762.0,0.00028143,7]
[381022910,1755952243529,-1762.0,0.00028143,7]
[381022911,1755952243538,-1762.0,0.00028143,7]
[381022912,1755952243547,-1762.0,0.00028143,7]
[381022913,1755952243556,-1762.0,0.00028143,7]
[381022914,1755952243565,-1762.0,0.00028143,7]
[381022915,1755952243575,-1912.84100546,0.00028143,7]
[381022916,1755952243584,-200.0,0.0002815,20]
[381022917,1755952243593,-800.0,0.00028175,2]
[381022918,1755952243603,-973.0,0.00028186,2]
[381022919,1755952243614,-2154.0,0.00028186,2]
[381022920,1755952243624,-639.16,0.00028186,2]
[381022921,1755952243634,-426.096,0.00028186,2]
[381022922,1755952243643,-199.0,0.00028205,10]
[381022923,1755952243652,-500.0,0.00028213,2]
[381022924,1755952243663,-151.0,0.000283,17]
[381022925,1755952243672,-1000.0,0.000283,2]
[381022926,1755952243682,-503.64461528,0.00028305,10]
[381022927,1755952243691,-500.0,0.00028313,10]
[381022928,1755952243777,-502.19665363,0.00028321,5]
[381022929,1755952243795,-1000.0,0.00028321,5]
[381022930,1755952243804,-425.66768637,0.00028321,5]
[381022931,1755952243814,-1000.0,0.00028321,5]
[381022932,1755952243823,-916.96542323,0.00028321,5]
[381022933,1755952243832,-501.213037,0.00028321,5]
[381022934,1755952243841,-501.31178191,0.00028321,5]
[381022935,1755952243851,-1000.0,0.00028321,5]
[381022936,1755952243860,-505.31098857,0.00028321,5]
[381022937,1755952243869,-502.59278412,0.00028321,5]
[381022938,1755952243878,-1000.0,0.00028321,5]
[381022939,1755952243887,-1000.0,0.00028321,5]
[381022940,1755952243896,-1000.0,0.00028321,5]
[381022941,1755952243905,-501.65133549,0.00028321,5]
[381022942,1755952243915,-503.24542109,0.00028321,5]
[381022943,1755952243924,-1000.0,0.00028321,5]
[381022944,1755952243933,-168.617227,0.00028321,7]
[381022945,1755952243942,-151.0,0.00028321,7]
[381022946,1755952243952,-151.0,0.00028321,7]
[381022947,1755952243961,-503.164019,0.00028321,7]
[381022948,1755952243970,-503.164019,0.00028321,7]
[381022949,1755952243979,-503.164019,0.00028321,7]
[381022950,1755952243988,-503.164019,0.00028321,7]
[381022951,1755952243998,-151.0,0.00028321,7]
[381022952,1755952244008,-151.0,0.00028321,7]
[381022953,1755952244018,-151.0,0.00028321,7]
[381022954,1755952244028,-239.638944,0.00028321,7]
[381022955,1755952244037,-822.909604,0.00028321,7]
[381022956,1755952244047,-151.0,0.00028321,7]
[381022957,1755952244056,-822.909604,0.00028321,7]
[381022958,1755952244067,-240.167992,0.00028321,7]
[381022959,1755952244078,-151.0,0.00028321,7]
[381022960,1755952244088,-260.989484,0.00028321,7]
[381022961,1755952244100,-151.0,0.00028321,7]
[381022962,1755952244109,-822.909604,0.00028321,7]
[381022963,1755952244118,-208.599095,0.00028321,7]
[381022964,1755952244127,-151.0,0.00028321,7]
[381022965,1755952244136,-151.0,0.00028321,7]
[381022966,1755952244145,-822.909604,0.00028321,7]
[381022967,1755952244154,-208.599095,0.00028321,7]
[381022968,1755952244164,-229.349946,0.00028321,7]
[381022969,1755952244174,-151.0,0.00028321,7]
[381022970,1755952244184,-208.599095,0.00028321,7]
[381022971,1755952244193,-208.599095,0.00028321,7]
[381022972,1755952244202,-151.0,0.00028321,7]
[381022973,1755952244211,-151.0,0.00028321,7]
[381022974,1755952244220,-5637.15019823,0.0002835,2]
[381022975,1755952244229,-151.0,0.0002835,7]
[381022976,1755952244238,-1764.44,0.0002836,3]
[381022977,1755952244247,-882.22,0.0002836,3]
[381022978,1755952244256,-441.1,0.0002836,3]
[381022979,1755952244266,-168.0,0.00028363,2]
[381022980,1755952244275,-169.6106334,0.00028369,2]
[381022981,1755952244284,-1000.0,0.00028379,2]
[381022982,1755952244293,-174.0131738,0.00028381,2]
[381022983,1755952244303,-250.0,0.000284,10]
[381022984,1755952244314,-646.0,0.000284,2]
[381022985,1755952244325,-150.248219,0.000284,2]
[381022986,1755952244334,-158.288624,0.00028427,20]
[381022987,1755952244343,-158.288624,0.00028434,20]
[381022988,1755952244352,-159.35367535,0.00028439,2]
[381022989,1755952244362,-503.58801118,0.0002844,5]
[381022990,1755952244371,-160.0,0.00028469,4]